[Event "Titled Tuesday Blitz May 03 Late 2022"]
[White "Vasquez Schroeder, Rodrigo"]
[Black "Dubov, Daniil"]
[WhiteFideId "3400042"]
[BlackFideId "24126055"]
[WhiteElo "2561"]
[BlackElo "2791"]
[Result "0-1"]
[Round "07"]
[TimeControl "180+1"]
[Date "2022.05.03"]
[WhiteClock "0:00:03"]
[BlackClock "0:00:05"]

1. e4 {[%clk 0:03:00]}  c5 {[%clk 0:02:58]} 2. Nf3 {[%clk 0:03:00]}  Nc6 {[%clk 0:02:59]} 3. d4 {[%clk 0:02:59]}  cxd4 {[%clk 0:03:00]} 4. Nxd4 {[%clk 0:03:00]}  Nf6 {[%clk 0:03:00]} 5. Nc3 {[%clk 0:02:59]}  e5 {[%clk 0:03:00]} 6. Ndb5 {[%clk 0:03:00]}  d6 {[%clk 0:03:01]} 7. Bg5 {[%clk 0:03:00]}  a6 {[%clk 0:03:00]} 8. Na3 {[%clk 0:03:00]}  b5 {[%clk 0:03:01]} 9. Nd5 {[%clk 0:03:00]}  Be7 {[%clk 0:03:01]} 10. Bxf6 {[%clk 0:03:00]}  Bxf6 {[%clk 0:03:02]} 11. c3 {[%clk 0:03:01]}  Rb8 {[%clk 0:03:01]} 12. Nc2 {[%clk 0:03:00]}  Bg5 {[%clk 0:03:02]} 13. Be2 {[%clk 0:02:55]}  O-O {[%clk 0:03:01]} 14. O-O {[%clk 0:02:56]}  Kh8 {[%clk 0:02:46]} 15. Qd3 {[%clk 0:02:54]}  f5 {[%clk 0:02:38]} 16. Bf3 {[%clk 0:02:54]}  Na5 {[%clk 0:02:05]} 17. b3 {[%clk 0:02:50]}  f4 {[%clk 0:01:54]} 18. Ncb4 {[%clk 0:02:43]}  Bb7 {[%clk 0:01:50]} 19. Rfb1 {[%clk 0:02:36]}  Nc6 {[%clk 0:01:36]} 20. a4 {[%clk 0:02:25]}  bxa4 {[%clk 0:01:25]} 21. Rxa4 {[%clk 0:02:24]}  a5 {[%clk 0:01:25]} 22. Nc2 {[%clk 0:02:20]}  Ne7 {[%clk 0:01:20]} 23. Ra3 {[%clk 0:01:50]}  Nxd5 {[%clk 0:01:08]} 24. exd5 {[%clk 0:01:51]}  Qb6 {[%clk 0:01:08]} 25. Be4 {[%clk 0:01:42]}  Bh4 {[%clk 0:01:07]} 26. Rf1 {[%clk 0:01:38]}  Ba6 {[%clk 0:01:03]} 27. c4 {[%clk 0:01:37]}  Bd8 {[%clk 0:01:02]} 28. Rfa1 {[%clk 0:01:26]}  Qc5 {[%clk 0:00:44]} 29. Ne1 {[%clk 0:01:12]}  Bb6 {[%clk 0:00:42]} 30. R1a2 {[%clk 0:01:11]}  g6 {[%clk 0:00:22]} 31. Qd2 {[%clk 0:01:05]}  Qc7 {[%clk 0:00:19]} 32. Nf3 {[%clk 0:01:03]}  Qe7 {[%clk 0:00:17]} 33. h3 {[%clk 0:00:59]}  Bc8 {[%clk 0:00:17]} 34. Qc3 {[%clk 0:00:56]}  Bc5 {[%clk 0:00:16]} 35. Rxa5 {[%clk 0:00:42]}  Bb4 {[%clk 0:00:16]} 36. Qb2 {[%clk 0:00:42]}  Bxa5 {[%clk 0:00:16]} 37. Rxa5 {[%clk 0:00:42]}  Bf5 {[%clk 0:00:14]} 38. Bxf5 {[%clk 0:00:40]}  gxf5 {[%clk 0:00:13]} 39. c5 {[%clk 0:00:39]}  dxc5 {[%clk 0:00:10]} 40. Nxe5 {[%clk 0:00:37]}  Qg7 {[%clk 0:00:09]} 41. Ra7 {[%clk 0:00:34]}  Qf6 {[%clk 0:00:09]} 42. d6 {[%clk 0:00:31]}  Rbe8 {[%clk 0:00:07]} 43. Re7 {[%clk 0:00:30]}  Rxe7 {[%clk 0:00:05]} 44. dxe7 {[%clk 0:00:30]}  Re8 {[%clk 0:00:06]} 45. Nf7+ {[%clk 0:00:18]}  Kg7 {[%clk 0:00:06]} 46. Qxf6+ {[%clk 0:00:13]}  Kxf6 {[%clk 0:00:07]} 47. Nd6 {[%clk 0:00:13]}  Rxe7 {[%clk 0:00:07]} 48. Kf1 {[%clk 0:00:14]}  Rd7 {[%clk 0:00:05]} 49. Nc4 {[%clk 0:00:14]}  Rd3 {[%clk 0:00:06]} 50. Na5 {[%clk 0:00:14]}  Rc3 {[%clk 0:00:06]} 51. Ke2 {[%clk 0:00:14]}  f3+ {[%clk 0:00:07]} 52. gxf3 {[%clk 0:00:14]}  Ke5 {[%clk 0:00:08]} 53. Nc4+ {[%clk 0:00:13]}  Kd4 {[%clk 0:00:07]} 54. Ne3 {[%clk 0:00:11]}  f4 {[%clk 0:00:05]} 55. Nf5+ {[%clk 0:00:11]}  Ke5 {[%clk 0:00:05]} 56. Ne7 {[%clk 0:00:09]}  Rxb3 {[%clk 0:00:05]} 57. Nc6+ {[%clk 0:00:09]}  Kd5 {[%clk 0:00:05]} 58. Ne7+ {[%clk 0:00:10]}  Kc4 {[%clk 0:00:06]} 59. Nc6 {[%clk 0:00:09]}  Rb2+ {[%clk 0:00:06]} 60. Ke1 {[%clk 0:00:09]}  Kd5 {[%clk 0:00:06]} 61. Ne7+ {[%clk 0:00:09]}  Kd4 {[%clk 0:00:06]} 62. Nc6+ {[%clk 0:00:08]}  Kc3 {[%clk 0:00:06]} 63. h4 {[%clk 0:00:07]}  c4 {[%clk 0:00:06]} 64. Ne5 {[%clk 0:00:04]}  Rb5 {[%clk 0:00:05]} 65. Ng4 {[%clk 0:00:03]}  Kb2 {[%clk 0:00:05]} 0-1


[Site "https://www.chess.com"]

[Event "Titled Tuesday Blitz May 03 Late 2022"]
[White "Vusatiuk, Vladimir"]
[Black "Sliwicki, Damian"]
[WhiteFideId "14118610"]
[BlackFideId "1127128"]
[WhiteElo "2157"]
[BlackElo "2084"]
[Result "1-0"]
[Round "07"]
[TimeControl "180+1"]
[Date "2022.05.03"]
[WhiteClock "0:00:56"]
[BlackClock "0:00:09"]

1. Nf3 {[%clk 0:03:00]}  g6 {[%clk 0:02:50]} 2. h4 {[%clk 0:03:00]}  d5 {[%clk 0:02:42]} 3. h5 {[%clk 0:02:59]}  Bg7 {[%clk 0:02:38]} 4. d4 {[%clk 0:02:59]}  Bg4 {[%clk 0:02:37]} 5. h6 {[%clk 0:02:59]}  Bf6 {[%clk 0:02:38]} 6. Nc3 {[%clk 0:02:44]}  Nc6 {[%clk 0:02:35]} 7. e3 {[%clk 0:02:28]}  Qd7 {[%clk 0:02:15]} 8. Be2 {[%clk 0:02:21]}  O-O-O {[%clk 0:02:12]} 9. b4 {[%clk 0:01:58]}  Nxb4 {[%clk 0:01:52]} 10. Rb1 {[%clk 0:01:58]}  Nc6 {[%clk 0:01:41]} 11. Na4 {[%clk 0:01:50]}  Bxf3 {[%clk 0:01:10]} 12. Nc5 {[%clk 0:01:00]}  Bxe2 {[%clk 0:01:09]} 13. Qxe2 {[%clk 0:01:01]}  Qf5 {[%clk 0:00:59]} 14. Rxb7 {[%clk 0:01:01]}  Nxd4 {[%clk 0:00:13]} 15. exd4 {[%clk 0:00:55]}  Bxd4 {[%clk 0:00:11]} 16. Rb8+ {[%clk 0:00:55]}  Kxb8 {[%clk 0:00:09]} 17. Qb5+ {[%clk 0:00:56]} 1-0


[Site "https://www.chess.com"]

[Event "Titled Tuesday Blitz May 03 Late 2022"]
[White "Yanayt, Eugene"]
[Black "Ferreira, Vitor Hugo Vieira"]
[WhiteFideId "2020165"]
[BlackFideId "2119765"]
[WhiteElo "2046"]
[BlackElo "2165"]
[Result "1-0"]
[Round "07"]
[TimeControl "180+1"]
[Date "2022.05.03"]
[WhiteClock "0:00:13"]
[BlackClock "0:01:07"]

1. d4 {[%clk 0:03:00]}  d5 {[%clk 0:02:46]} 2. c4 {[%clk 0:02:59]}  c6 {[%clk 0:02:34]} 3. Nf3 {[%clk 0:02:58]}  Nf6 {[%clk 0:02:33]} 4. g3 {[%clk 0:02:58]}  e6 {[%clk 0:02:34]} 5. Bg2 {[%clk 0:02:58]}  Be7 {[%clk 0:02:32]} 6. Qd3 {[%clk 0:02:58]}  O-O {[%clk 0:02:32]} 7. O-O {[%clk 0:02:58]}  b6 {[%clk 0:02:32]} 8. Nc3 {[%clk 0:02:58]}  Ba6 {[%clk 0:02:32]} 9. Ne5 {[%clk 0:02:56]}  dxc4 {[%clk 0:02:28]} 10. Qd1 {[%clk 0:02:32]}  Qc8 {[%clk 0:02:13]} 11. a4 {[%clk 0:02:30]}  Nd5 {[%clk 0:02:11]} 12. Ne4 {[%clk 0:02:21]}  Nd7 {[%clk 0:02:04]} 13. f4 {[%clk 0:02:12]}  Nxe5 {[%clk 0:02:02]} 14. fxe5 {[%clk 0:02:11]}  b5 {[%clk 0:02:01]} 15. Bg5 {[%clk 0:01:58]}  f6 {[%clk 0:02:00]} 16. exf6 {[%clk 0:01:52]}  gxf6 {[%clk 0:02:01]} 17. Bh6 {[%clk 0:01:46]}  Rf7 {[%clk 0:02:01]} 18. Bf3 {[%clk 0:01:42]}  Bf8 {[%clk 0:01:59]} 19. Qd2 {[%clk 0:01:40]}  Bxh6 {[%clk 0:01:54]} 20. Qxh6 {[%clk 0:01:39]}  Qf8 {[%clk 0:01:54]} 21. Qh3 {[%clk 0:01:38]}  Bc8 {[%clk 0:01:53]} 22. Bh5 {[%clk 0:01:35]}  Rg7 {[%clk 0:01:52]} 23. Rf3 {[%clk 0:01:19]}  e5 {[%clk 0:01:44]} 24. Qh4 {[%clk 0:01:15]}  Nf4 {[%clk 0:01:43]} 25. Nxf6+ {[%clk 0:01:09]}  Kh8 {[%clk 0:01:41]} 26. dxe5 {[%clk 0:01:07]}  Nxh5 {[%clk 0:01:35]} 27. Nxh5 {[%clk 0:01:03]}  Qc5+ {[%clk 0:01:32]} 28. Kh1 {[%clk 0:00:58]}  Bg4 {[%clk 0:01:32]} 29. Rf4 {[%clk 0:00:41]}  Bxh5 {[%clk 0:01:27]} 30. Qxh5 {[%clk 0:00:37]}  Re8 {[%clk 0:01:26]} 31. Qxe8+ {[%clk 0:00:35]}  Rg8 {[%clk 0:01:25]} 32. Qf7 {[%clk 0:00:30]}  Qxe5 {[%clk 0:01:24]} 33. Raf1 {[%clk 0:00:23]}  Qxb2 {[%clk 0:01:14]} 34. Rh4 {[%clk 0:00:19]}  Qc2 {[%clk 0:01:10]} 35. e4 {[%clk 0:00:17]}  Rg7 {[%clk 0:01:07]} 36. Qe8+ {[%clk 0:00:13]}  Rg8 {[%clk 0:01:07]} 37. Qe5+ {[%clk 0:00:13]}  Rg7 {[%clk 0:01:07]} 38. Rf8# {[%clk 0:00:13]} 1-0


[Site "https://www.chess.com"]

[Event "Titled Tuesday Blitz May 03 Late 2022"]
[White "Yuan, Qingyu"]
[Black "Bordi, Kevin"]
[WhiteFideId "8609772"]
[BlackFideId "621862"]
[WhiteElo "2359"]
[BlackElo "2658"]
[Result "1/2-1/2"]
[Round "07"]
[TimeControl "180+1"]
[Date "2022.05.03"]
[WhiteClock "0:00:29"]
[BlackClock "0:00:32"]

1. e4 {[%clk 0:03:00]}  d5 {[%clk 0:03:00]} 2. exd5 {[%clk 0:03:00]}  Qxd5 {[%clk 0:03:01]} 3. Nc3 {[%clk 0:03:01]}  Qa5 {[%clk 0:03:00]} 4. d4 {[%clk 0:03:00]}  Nf6 {[%clk 0:03:00]} 5. Nf3 {[%clk 0:03:00]}  c6 {[%clk 0:03:00]} 6. Ne5 {[%clk 0:02:55]}  Be6 {[%clk 0:02:59]} 7. Nc4 {[%clk 0:02:48]}  Bxc4 {[%clk 0:02:57]} 8. Bxc4 {[%clk 0:02:48]}  e6 {[%clk 0:02:58]} 9. Qe2 {[%clk 0:02:44]}  Nbd7 {[%clk 0:02:57]} 10. Bd2 {[%clk 0:02:43]}  Qb6 {[%clk 0:02:55]} 11. O-O-O {[%clk 0:02:39]}  Qxd4 {[%clk 0:02:54]} 12. Bxe6 {[%clk 0:02:24]}  fxe6 {[%clk 0:02:53]} 13. Qxe6+ {[%clk 0:02:24]}  Be7 {[%clk 0:02:54]} 14. Rhe1 {[%clk 0:02:14]}  O-O-O {[%clk 0:02:25]} 15. Qxe7 {[%clk 0:01:59]}  Qxf2 {[%clk 0:02:25]} 16. Be3 {[%clk 0:01:39]}  Qxg2 {[%clk 0:02:25]} 17. Bxa7 {[%clk 0:01:39]}  Rhe8 {[%clk 0:02:17]} 18. Qd6 {[%clk 0:01:30]}  Rxe1 {[%clk 0:02:17]} 19. Rxe1 {[%clk 0:01:30]}  Re8 {[%clk 0:01:55]} 20. Rd1 {[%clk 0:01:17]}  Qg5+ {[%clk 0:01:43]} 21. Kb1 {[%clk 0:01:16]}  Qe5 {[%clk 0:01:43]} 22. Qa3 {[%clk 0:01:03]}  Qxh2 {[%clk 0:01:41]} 23. Bd4 {[%clk 0:00:53]}  h5 {[%clk 0:01:30]} 24. Qa8+ {[%clk 0:00:48]}  Qb8 {[%clk 0:01:29]} 25. Qa5 {[%clk 0:00:48]}  Qf4 {[%clk 0:01:18]} 26. a4 {[%clk 0:00:35]}  h4 {[%clk 0:01:16]} 27. Qa8+ {[%clk 0:00:28]}  Qb8 {[%clk 0:01:12]} 28. Qa5 {[%clk 0:00:29]}  Qf4 {[%clk 0:01:12]} 29. Qa8+ {[%clk 0:00:29]}  Qb8 {[%clk 0:01:05]} 30. Qa5 {[%clk 0:00:29]}  Qf4 {[%clk 0:00:32]} 1/2-1/2


[Site "https://www.chess.com"]

[Event "Titled Tuesday Blitz May 03 Late 2022"]
[White "Yurovskykh, Oleksandr"]
[Black "Carrasco Miranda, Andres"]
[WhiteFideId "14134020"]
[BlackFideId "3405990"]
[WhiteElo "2292"]
[BlackElo "2177"]
[Result "0-1"]
[Round "07"]
[TimeControl "180+1"]
[Date "2022.05.03"]
[WhiteClock "0:00:02"]
[BlackClock "0:00:59"]

1. d4 {[%clk 0:03:00]}  Nf6 {[%clk 0:02:58]} 2. Nf3 {[%clk 0:03:00]}  g6 {[%clk 0:02:56]} 3. Bg5 {[%clk 0:02:59]}  Bg7 {[%clk 0:02:56]} 4. Nbd2 {[%clk 0:02:57]}  d5 {[%clk 0:02:56]} 5. e3 {[%clk 0:02:56]}  O-O {[%clk 0:02:55]} 6. Bd3 {[%clk 0:02:55]}  c5 {[%clk 0:02:53]} 7. c3 {[%clk 0:02:54]}  Qb6 {[%clk 0:02:51]} 8. Qc2 {[%clk 0:02:52]}  Nc6 {[%clk 0:02:49]} 9. O-O {[%clk 0:02:50]}  Be6 {[%clk 0:02:46]} 10. Rfe1 {[%clk 0:02:32]}  Rac8 {[%clk 0:02:28]} 11. dxc5 {[%clk 0:02:30]}  Qxc5 {[%clk 0:02:27]} 12. Nb3 {[%clk 0:02:16]}  Qb6 {[%clk 0:02:24]} 13. Nbd4 {[%clk 0:02:08]}  Bg4 {[%clk 0:02:16]} 14. Qe2 {[%clk 0:01:51]}  e5 {[%clk 0:01:40]} 15. Nxc6 {[%clk 0:01:37]}  bxc6 {[%clk 0:01:41]} 16. Ba6 {[%clk 0:00:58]}  Rce8 {[%clk 0:01:26]} 17. h3 {[%clk 0:00:35]}  Bxf3 {[%clk 0:01:10]} 18. gxf3 {[%clk 0:00:11]}  Nd7 {[%clk 0:01:10]} 19. Bd3 {[%clk 0:00:08]}  f5 {[%clk 0:01:02]} 20. Bh4 {[%clk 0:00:07]}  e4 {[%clk 0:01:02]} 21. fxe4 {[%clk 0:00:06]}  fxe4 {[%clk 0:01:03]} 22. Bb1 {[%clk 0:00:03]}  Ne5 {[%clk 0:01:03]} 23. Bg3 {[%clk 0:00:03]}  Nf3+ {[%clk 0:01:04]} 24. Kg2 {[%clk 0:00:02]}  h5 {[%clk 0:01:01]} 25. b3 {[%clk 0:00:01]}  h4 {[%clk 0:01:01]} 26. Bh2 {[%clk 0:00:01]}  g5 {[%clk 0:00:59]} 27. Bc2 {[%clk 0:00:02]}  Qc7 {[%clk 0:00:59]} 0-1


[Site "https://www.chess.com"]

[Event "Titled Tuesday Blitz May 03 Late 2022"]
[White "Zlatin, Alexander"]
[Black "Keller, Peter"]
[WhiteFideId "2810549"]
[BlackFideId "1272105"]
[WhiteElo "2228"]
[BlackElo "2275"]
[Result "1-0"]
[Round "07"]
[TimeControl "180+1"]
[Date "2022.05.03"]
[WhiteClock "0:00:09"]
[BlackClock "0:00:06"]

1. d4 {[%clk 0:02:41]}  Nf6 {[%clk 0:03:00]} 2. Nc3 {[%clk 0:02:40]}  d5 {[%clk 0:03:00]} 3. Bf4 {[%clk 0:02:40]}  a6 {[%clk 0:02:53]} 4. e4 {[%clk 0:02:40]}  dxe4 {[%clk 0:02:50]} 5. d5 {[%clk 0:02:37]}  c6 {[%clk 0:02:28]} 6. dxc6 {[%clk 0:02:33]}  Qxd1+ {[%clk 0:02:26]} 7. Rxd1 {[%clk 0:02:34]}  Nxc6 {[%clk 0:02:22]} 8. Na4 {[%clk 0:02:24]}  Bg4 {[%clk 0:02:05]} 9. f3 {[%clk 0:02:18]}  exf3 {[%clk 0:02:04]} 10. gxf3 {[%clk 0:02:18]}  Bf5 {[%clk 0:02:03]} 11. Nb6 {[%clk 0:02:15]}  Rd8 {[%clk 0:01:58]} 12. Rd2 {[%clk 0:02:11]}  e5 {[%clk 0:01:58]} 13. Rxd8+ {[%clk 0:02:08]}  Kxd8 {[%clk 0:01:58]} 14. Bg5 {[%clk 0:02:08]}  Kc7 {[%clk 0:01:54]} 15. Nc4 {[%clk 0:02:06]}  Bxc2 {[%clk 0:01:49]} 16. Ne2 {[%clk 0:02:02]}  Bb4+ {[%clk 0:01:43]} 17. Nc3 {[%clk 0:02:01]}  Nd5 {[%clk 0:01:33]} 18. Bd2 {[%clk 0:01:58]}  Nxc3 {[%clk 0:01:33]} 19. bxc3 {[%clk 0:01:58]}  Bc5 {[%clk 0:01:33]} 20. Ne3 {[%clk 0:01:54]}  Bxe3 {[%clk 0:01:27]} 21. Bxe3 {[%clk 0:01:55]}  Rd8 {[%clk 0:01:25]} 22. Be2 {[%clk 0:01:55]}  Bd3 {[%clk 0:01:25]} 23. Bd1 {[%clk 0:01:56]}  b5 {[%clk 0:01:22]} 24. Rg1 {[%clk 0:01:55]}  Bg6 {[%clk 0:01:21]} 25. h4 {[%clk 0:01:54]}  h5 {[%clk 0:01:20]} 26. f4 {[%clk 0:01:46]}  Re8 {[%clk 0:01:18]} 27. f5 {[%clk 0:01:44]}  Bxf5 {[%clk 0:01:16]} 28. Rxg7 {[%clk 0:01:45]}  Bg6 {[%clk 0:01:17]} 29. Bb3 {[%clk 0:01:40]}  Nd8 {[%clk 0:01:12]} 30. Bg5 {[%clk 0:01:18]}  Ne6 {[%clk 0:01:12]} 31. Bxe6 {[%clk 0:01:16]}  Rxe6 {[%clk 0:01:13]} 32. Rg8 {[%clk 0:01:17]}  Kc6 {[%clk 0:01:06]} 33. Rc8+ {[%clk 0:01:15]}  Kd5 {[%clk 0:01:06]} 34. Kd2 {[%clk 0:01:14]}  Ke4 {[%clk 0:01:05]} 35. c4 {[%clk 0:01:08]}  bxc4 {[%clk 0:01:02]} 36. Rxc4+ {[%clk 0:01:07]}  Kf3 {[%clk 0:01:02]} 37. Rc3+ {[%clk 0:01:06]}  Kg4 {[%clk 0:01:02]} 38. Rc4+ {[%clk 0:01:03]}  e4 {[%clk 0:01:02]} 39. Ke3 {[%clk 0:00:55]}  f6 {[%clk 0:00:58]} 40. Bf4 {[%clk 0:00:54]}  Kxh4 {[%clk 0:00:57]} 41. Rc1 {[%clk 0:00:53]}  Kg4 {[%clk 0:00:54]} 42. Rg1+ {[%clk 0:00:50]}  Kf5 {[%clk 0:00:54]} 43. Rc1 {[%clk 0:00:51]}  h4 {[%clk 0:00:46]} 44. Rc5+ {[%clk 0:00:49]}  Kg4 {[%clk 0:00:46]} 45. Rc1 {[%clk 0:00:50]}  h3 {[%clk 0:00:41]} 46. Rg1+ {[%clk 0:00:48]}  Kh4 {[%clk 0:00:41]} 47. Rxg6 {[%clk 0:00:43]}  a5 {[%clk 0:00:39]} 48. a4 {[%clk 0:00:40]}  Kh5 {[%clk 0:00:37]} 49. Rg8 {[%clk 0:00:37]}  Kh4 {[%clk 0:00:31]} 50. Rg1 {[%clk 0:00:32]}  Kh5 {[%clk 0:00:29]} 51. Rd1 {[%clk 0:00:29]}  Kg4 {[%clk 0:00:27]} 52. Rd8 {[%clk 0:00:26]}  Kf5 {[%clk 0:00:21]} 53. Rd5+ {[%clk 0:00:22]}  Kg4 {[%clk 0:00:22]} 54. Rxa5 {[%clk 0:00:20]}  Rc6 {[%clk 0:00:20]} 55. Bb8 {[%clk 0:00:13]}  f5 {[%clk 0:00:19]} 56. Ra7 {[%clk 0:00:12]}  Rc3+ {[%clk 0:00:16]} 57. Kd2 {[%clk 0:00:12]}  Rd3+ {[%clk 0:00:14]} 58. Ke2 {[%clk 0:00:12]}  f4 {[%clk 0:00:11]} 59. Rg7+ {[%clk 0:00:12]}  Kf5 {[%clk 0:00:07]} 60. Rf7+ {[%clk 0:00:12]}  Ke6 {[%clk 0:00:07]} 61. Rxf4 {[%clk 0:00:12]}  h2 {[%clk 0:00:07]} 62. Rxe4+ {[%clk 0:00:09]}  Kd5 {[%clk 0:00:07]} 63. Re5+ {[%clk 0:00:09]}  Kc4 {[%clk 0:00:06]} 64. Rh5 {[%clk 0:00:09]} 1-0


[Site "https://www.chess.com"]

[Event "Titled Tuesday Blitz May 03 Late 2022"]
[White "Aggelis, Nikolaos"]
[Black "Kholin, Aleksandr"]
[WhiteFideId "4213220"]
[BlackFideId "14179385"]
[WhiteElo "2154"]
[BlackElo "2475"]
[Result "1/2-1/2"]
[Round "08"]
[TimeControl "180+1"]
[Date "2022.05.03"]
[WhiteClock "0:00:26"]
[BlackClock "0:00:14"]

1. d4 {[%clk 0:03:00]}  d5 {[%clk 0:02:58]} 2. g3 {[%clk 0:03:01]}  Nf6 {[%clk 0:02:51]} 3. Nf3 {[%clk 0:03:01]}  e6 {[%clk 0:02:52]} 4. Bg2 {[%clk 0:03:01]}  Be7 {[%clk 0:02:52]} 5. O-O {[%clk 0:03:01]}  O-O {[%clk 0:02:52]} 6. c4 {[%clk 0:03:02]}  dxc4 {[%clk 0:02:53]} 7. Qc2 {[%clk 0:02:59]}  a6 {[%clk 0:02:53]} 8. a4 {[%clk 0:02:56]}  Bd7 {[%clk 0:02:51]} 9. Ne5 {[%clk 0:02:56]}  Nc6 {[%clk 0:02:51]} 10. Qxc4 {[%clk 0:02:46]}  Nxe5 {[%clk 0:02:29]} 11. dxe5 {[%clk 0:02:47]}  Nd5 {[%clk 0:02:29]} 12. Bxd5 {[%clk 0:02:29]}  exd5 {[%clk 0:02:29]} 13. Qxd5 {[%clk 0:02:29]}  Qc8 {[%clk 0:02:13]} 14. Nc3 {[%clk 0:02:25]}  Bc6 {[%clk 0:02:11]} 15. Qc4 {[%clk 0:02:21]}  Qf5 {[%clk 0:02:06]} 16. Bf4 {[%clk 0:02:10]}  Rad8 {[%clk 0:01:30]} 17. e4 {[%clk 0:02:10]}  Qg6 {[%clk 0:01:22]} 18. Nd5 {[%clk 0:02:08]}  Rd7 {[%clk 0:01:11]} 19. Rfd1 {[%clk 0:01:47]}  Qe6 {[%clk 0:01:09]} 20. Nxe7+ {[%clk 0:01:45]}  Qxe7 {[%clk 0:01:07]} 21. Rxd7 {[%clk 0:01:39]}  Qxd7 {[%clk 0:01:06]} 22. Re1 {[%clk 0:01:34]}  h6 {[%clk 0:01:02]} 23. h4 {[%clk 0:01:31]}  Rd8 {[%clk 0:01:02]} 24. b3 {[%clk 0:01:28]}  Qg4 {[%clk 0:00:45]} 25. Qe2 {[%clk 0:01:23]}  Qxe2 {[%clk 0:00:44]} 26. Rxe2 {[%clk 0:01:23]}  Rd1+ {[%clk 0:00:44]} 27. Kg2 {[%clk 0:01:23]}  Rd3 {[%clk 0:00:42]} 28. Re3 {[%clk 0:01:22]}  Rxe3 {[%clk 0:00:41]} 29. Bxe3 {[%clk 0:01:22]}  Bxe4+ {[%clk 0:00:42]} 30. Kf1 {[%clk 0:01:07]}  Bc2 {[%clk 0:00:43]} 31. b4 {[%clk 0:01:01]}  Bxa4 {[%clk 0:00:43]} 32. Ba7 {[%clk 0:01:01]}  Kf8 {[%clk 0:00:37]} 33. Bb8 {[%clk 0:01:01]}  c6 {[%clk 0:00:37]} 34. Ke2 {[%clk 0:01:01]}  Ke7 {[%clk 0:00:37]} 35. Kd3 {[%clk 0:01:02]}  Ke6 {[%clk 0:00:37]} 36. Ke4 {[%clk 0:00:55]}  h5 {[%clk 0:00:27]} 37. Bc7 {[%clk 0:00:52]}  g6 {[%clk 0:00:27]} 38. Bb6 {[%clk 0:00:52]}  Bc2+ {[%clk 0:00:26]} 39. Kd4 {[%clk 0:00:51]}  Kf5 {[%clk 0:00:26]} 40. Bc7 {[%clk 0:00:48]}  Bb3 {[%clk 0:00:24]} 41. Bb6 {[%clk 0:00:47]}  Kg4 {[%clk 0:00:23]} 42. Ke3 {[%clk 0:00:46]}  Kf5 {[%clk 0:00:22]} 43. Kd4 {[%clk 0:00:45]}  Ke6 {[%clk 0:00:23]} 44. Bc7 {[%clk 0:00:43]}  Bd1 {[%clk 0:00:21]} 45. Bb6 {[%clk 0:00:41]}  Bf3 {[%clk 0:00:22]} 46. Bc7 {[%clk 0:00:39]}  Bd5 {[%clk 0:00:22]} 47. Bb6 {[%clk 0:00:39]}  Kd7 {[%clk 0:00:23]} 48. Kc5 {[%clk 0:00:37]}  Be6 {[%clk 0:00:22]} 49. Ba5 {[%clk 0:00:37]}  Bb3 {[%clk 0:00:20]} 50. Bb6 {[%clk 0:00:37]}  Bc2 {[%clk 0:00:19]} 51. Ba5 {[%clk 0:00:36]}  Be4 {[%clk 0:00:20]} 52. Bb6 {[%clk 0:00:36]}  Ke6 {[%clk 0:00:19]} 53. Kd4 {[%clk 0:00:36]}  Bd5 {[%clk 0:00:19]} 54. Bc7 {[%clk 0:00:36]}  Kf5 {[%clk 0:00:19]} 55. Bb6 {[%clk 0:00:35]}  Kg4 {[%clk 0:00:19]} 56. Ke3 {[%clk 0:00:35]}  Kh3 {[%clk 0:00:19]} 57. Bc5 {[%clk 0:00:33]}  Kg2 {[%clk 0:00:18]} 58. Bb6 {[%clk 0:00:33]}  Kf1 {[%clk 0:00:18]} 59. Kd2 {[%clk 0:00:33]}  Bf3 {[%clk 0:00:16]} 60. Bc5 {[%clk 0:00:33]}  Bd5 {[%clk 0:00:14]} 61. Bb6 {[%clk 0:00:32]}  Be4 {[%clk 0:00:14]} 62. Bc5 {[%clk 0:00:31]}  a5 {[%clk 0:00:14]} 63. bxa5 {[%clk 0:00:30]}  Kg2 {[%clk 0:00:14]} 64. Ke3 {[%clk 0:00:30]}  Bd5 {[%clk 0:00:14]} 65. Bb6 {[%clk 0:00:30]}  Kh3 {[%clk 0:00:13]} 66. Kf4 {[%clk 0:00:28]}  Kg2 {[%clk 0:00:13]} 67. Ke3 {[%clk 0:00:28]}  Kh3 {[%clk 0:00:13]} 68. Kf4 {[%clk 0:00:28]}  Kg2 {[%clk 0:00:14]} 69. Ke3 {[%clk 0:00:26]} 1/2-1/2


[Site "https://www.chess.com"]

[Event "Titled Tuesday Blitz May 03 Late 2022"]
[White "Wagner, Dinara"]
[Black "Bifulco, Michel"]
[WhiteFideId "24157570"]
[BlackFideId "828580"]
[WhiteElo "2216"]
[BlackElo "2165"]
[Result "1-0"]
[Round "08"]
[TimeControl "180+1"]
[Date "2022.05.03"]
[WhiteClock "0:00:34"]
[BlackClock "0:00:02"]

1. d4 {[%clk 0:02:56]}  Nf6 {[%clk 0:02:59]} 2. c4 {[%clk 0:02:54]}  g6 {[%clk 0:02:59]} 3. Nf3 {[%clk 0:02:54]}  Bg7 {[%clk 0:03:00]} 4. Nc3 {[%clk 0:02:54]}  O-O {[%clk 0:03:00]} 5. g3 {[%clk 0:02:54]}  d6 {[%clk 0:03:01]} 6. Bg2 {[%clk 0:02:55]}  Nc6 {[%clk 0:03:01]} 7. O-O {[%clk 0:02:55]}  a6 {[%clk 0:03:02]} 8. Qd3 {[%clk 0:02:55]}  Rb8 {[%clk 0:03:00]} 9. d5 {[%clk 0:02:54]}  Na5 {[%clk 0:03:00]} 10. b4 {[%clk 0:02:54]}  Ne4 {[%clk 0:02:50]} 11. Nxe4 {[%clk 0:02:51]}  Bxa1 {[%clk 0:02:48]} 12. bxa5 {[%clk 0:02:50]}  Bf5 {[%clk 0:02:43]} 13. Nh4 {[%clk 0:02:49]}  Bxe4 {[%clk 0:02:41]} 14. Qxe4 {[%clk 0:02:48]}  Bg7 {[%clk 0:02:38]} 15. Qd3 {[%clk 0:02:47]}  b5 {[%clk 0:02:37]} 16. axb6 {[%clk 0:02:47]}  cxb6 {[%clk 0:02:35]} 17. Be3 {[%clk 0:02:46]}  Qc7 {[%clk 0:02:33]} 18. Nf3 {[%clk 0:02:45]}  Rfc8 {[%clk 0:02:33]} 19. Nd2 {[%clk 0:02:45]}  b5 {[%clk 0:02:27]} 20. cxb5 {[%clk 0:02:43]}  axb5 {[%clk 0:02:26]} 21. h4 {[%clk 0:02:42]}  Qc2 {[%clk 0:02:16]} 22. Qb3 {[%clk 0:02:41]}  Rc3 {[%clk 0:02:12]} 23. Qb1 {[%clk 0:01:46]}  Ra8 {[%clk 0:01:58]} 24. Ne4 {[%clk 0:01:35]}  Rcc8 {[%clk 0:01:41]} 25. Qxb5 {[%clk 0:01:33]}  Qxa2 {[%clk 0:01:26]} 26. Qd7 {[%clk 0:01:27]}  Re8 {[%clk 0:01:14]} 27. Bf3 {[%clk 0:01:27]}  Qa4 {[%clk 0:01:06]} 28. Qc7 {[%clk 0:01:26]}  Rac8 {[%clk 0:00:55]} 29. Qb7 {[%clk 0:01:26]}  Rb8 {[%clk 0:00:53]} 30. Qc6 {[%clk 0:01:26]}  Qa3 {[%clk 0:00:43]} 31. h5 {[%clk 0:01:24]}  Be5 {[%clk 0:00:35]} 32. hxg6 {[%clk 0:01:23]}  hxg6 {[%clk 0:00:36]} 33. Kg2 {[%clk 0:01:19]}  Kg7 {[%clk 0:00:35]} 34. Ng5 {[%clk 0:01:09]}  Rbc8 {[%clk 0:00:25]} 35. Qb5 {[%clk 0:01:08]}  Rb8 {[%clk 0:00:23]} 36. Qc4 {[%clk 0:01:08]}  Rb4 {[%clk 0:00:21]} 37. Qc6 {[%clk 0:01:07]}  Rbb8 {[%clk 0:00:16]} 38. Qd7 {[%clk 0:00:55]}  Bf6 {[%clk 0:00:11]} 39. Ne4 {[%clk 0:00:53]}  Be5 {[%clk 0:00:11]} 40. Ng5 {[%clk 0:00:38]}  Rbd8 {[%clk 0:00:11]} 41. Qg4 {[%clk 0:00:37]}  Bf6 {[%clk 0:00:09]} 42. Qf4 {[%clk 0:00:34]}  Rh8 {[%clk 0:00:08]} 43. Bd4 {[%clk 0:00:34]}  Qa5 {[%clk 0:00:02]} 44. Bxf6+ {[%clk 0:00:33]}  exf6 {[%clk 0:00:03]} 45. Ne4 {[%clk 0:00:34]}  f5 {[%clk 0:00:02]} 46. Nxd6 {[%clk 0:00:34]} 1-0


[Site "https://www.chess.com"]